fUSD/lending_fUSD_20240214
["ID","MTS","AMOUNT","RATE_DAILY","PERIOD"]
[314018635,1707923584896,-5014.41,0.00042465,7]
[314018636,1707923584906,-16404.96,0.00042465,7]
[314018637,1707923584915,-2618.16,0.00042465,7]
[314018638,1707923584925,-1253.74,0.00042465,7]
[314018639,1707923584935,-1250.0,0.00042465,3]
[314018640,1707923584945,-1428.29,0.00042465,7]
[314018641,1707923584955,-12919.21,0.00042465,7]
[314018642,1707923584969,-725.51,0.00042465,7]
[314018643,1707923584980,-564.17,0.00042465,7]
[314018644,1707923584990,-670.32,0.00042465,7]
[314018645,1707923585003,-608.21,0.00042465,7]
[314018646,1707923585012,-3982.22,0.00042465,7]
[314018647,1707923585022,-15886.12,0.00042465,7]
[314018648,1707923585032,-2293.57,0.00042465,7]
[314018649,1707923585041,-1912.2,0.00042465,7]
[314018650,1707923585051,-1078.52,0.00042465,7]
[314018651,1707923585060,-1675.86,0.00042465,7]
[314018652,1707923585070,-998.25,0.00042465,7]
[314018653,1707923585079,-1548.99,0.00042465,7]
[314018654,1707923585089,-4682.24,0.00042465,7]
[314018655,1707923585099,-1678.3,0.00042465,7]
[314018656,1707923585109,-2172.47,0.00042465,7]
[314018657,1707923585119,-4636.94,0.00042465,7]
[314018658,1707923585128,-905.58,0.00042465,7]
[314018659,1707923585138,-3347.59,0.00042465,7]
[314018660,1707923585148,-24853.72,0.00042465,7]
[314018661,1707923585158,-2682.03,0.00042465,7]
[314018662,1707923585168,-500.0,0.00042465,7]
[314018663,1707923585178,-741.23,0.00042465,7]
[314018664,1707923585189,-4661.42,0.00042465,7]
[314018665,1707923585199,-504.17,0.00042465,7]
[314018666,1707923585214,-644.02,0.00042465,7]
[314018667,1707923585223,-1447.91,0.00042465,7]
[314018668,1707923585233,-870.17,0.00042465,7]
[314018669,1707923585243,-575.73,0.00042465,2]
[314018670,1707923585253,-513.51,0.00042465,7]
[314018671,1707923585264,-13772.64,0.00042465,7]
[314018672,1707923585274,-734.67,0.00042465,7]
[314018673,1707923585286,-861.53,0.00042465,7]
[314018674,1707923585296,-4963.65,0.00042465,7]
[314018675,1707923585306,-4015.51,0.00042465,7]
[314018676,1707923585316,-1647.66,0.00042465,7]
[314018677,1707923585326,-834.17,0.00042465,7]
[314018678,1707923585336,-1651.62,0.00042465,7]
[314018679,1707923585346,-1367.71,0.00042465,7]
[314018680,1707923585357,-705.01,0.00042465,7]
[314018681,1707923585367,-738.43,0.00042465,7]
[314018682,1707923585376,-500.0,0.00042465,7]
[314018683,1707923585386,-1605.94,0.00042465,7]
[314018684,1707923585395,-1232.76,0.00042465,7]
[314018685,1707923585405,-2624.93,0.00042465,7]
[314018686,1707923585415,-1397.98,0.00042465,7]
[314018687,1707923585424,-3882.2,0.00042465,7]
[314018688,1707923585434,-6303.05,0.00042465,7]
[314018689,1707923585443,-1424.26,0.00042465,7]
[314018690,1707923585454,-6796.38,0.00042465,7]
[314018691,1707923585469,-1430.04,0.00042465,7]
[314018692,1707923585478,-9115.46,0.00042465,7]
[314018693,1707923585488,-876.71,0.00042465,7]
[314018694,1707923585498,-6722.84,0.00042465,7]
[314018695,1707923585507,-1159.69,0.00042465,7]
[314018696,1707923585516,-5625.73,0.00042465,7]
[314018697,1707923585526,-1566.04,0.00042465,7]
[314018698,1707923585535,-742.15,0.00042465,7]
[314018699,1707923585545,-1074.84,0.00042465,7]
[314018700,1707923585555,-21955.42,0.00042465,7]
[314018701,1707923585564,-10536.73,0.00042465,7]
[314018702,1707923585574,-1224.55,0.00042465,7]
[314018703,1707923585583,-3349.17,0.00042465,7]
[314018704,1707923585592,-1141.82,0.00042465,7]
[314018705,1707923585601,-4103.23,0.00042465,7]
[314018706,1707923585611,-15646.43,0.00042465,7]
[314018707,1707923585620,-580.0,0.00042465,7]
[314018708,1707923585629,-849.7,0.00042465,7]
[314018709,1707923585639,-1131.16,0.00042465,7]
[314018710,1707923585649,-888.9,0.00042465,7]
[314018711,1707923585658,-970.39,0.00042465,7]
[314018712,1707923585668,-2458.64,0.00042465,7]
[314018713,1707923585677,-1032.81,0.00042465,7]
[314018714,1707923585767,-940.22,0.00042465,7]
[314018715,1707923585778,-845.63,0.00042465,7]
[314018716,1707923585787,-861.05,0.00042465,7]
[314018717,1707923585797,-2020.71,0.00042465,7]
[314018718,1707923585806,-4353.77,0.00042465,7]
[314018719,1707923585815,-655.93,0.00042465,7]
[314018720,1707923585824,-2136.24,0.00042465,7]
[314018721,1707923585834,-3468.32,0.00042465,7]
[314018722,1707923585843,-1868.07,0.00042465,7]
[314018723,1707923585852,-1175.69,0.00042465,7]
[314018724,1707923585861,-4307.44,0.00042465,7]
[314018725,1707923585870,-2131.96,0.00042465,7]
[314018726,1707923585880,-4133.28,0.00042465,7]
[314018727,1707923585889,-3754.14,0.00042465,7]
[314018728,1707923585899,-1200.28,0.00042465,7]
[314018729,1707923585909,-551.94,0.00042465,7]
[314018730,1707923585919,-2643.73,0.00042465,7]
[314018731,1707923585928,-1293.93,0.00042465,7]
[314018732,1707923585938,-1428.62,0.00042465,7]
[314018733,1707923585947,-4255.94,0.00042465,7]
[314018734,1707923585956,-1073.43,0.00042465,7]
[314018735,1707923585967,-1154.7,0.00042465,7]
[314018736,1707923585978,-1681.08,0.00042465,7]
[314018737,1707923585990,-749.27,0.00042465,7]
[314018738,1707923585999,-696.07,0.00042465,7]
[314018739,1707923586009,-1992.67,0.00042465,7]
[314018740,1707923586018,-1960.66,0.00042465,7]
[314018741,1707923586027,-4598.11,0.00042465,7]
[314018742,1707923586036,-2148.61,0.00042465,7]
[314018743,1707923586046,-776.5,0.00042465,7]
[314018744,1707923586055,-759.83,0.00042465,7]
[314018745,1707923586065,-876.47,0.00042465,7]
[314018746,1707923586075,-907.63,0.00042465,7]
[314018747,1707923586084,-1863.83,0.00042465,7]
[314018748,1707923586094,-22229.37,0.00042465,7]
[314018749,1707923586103,-2233.48,0.00042465,7]
[314018750,1707923586113,-1407.78,0.00042465,7]
[314018751,1707923586122,-2807.7,0.00042465,7]
[314018752,1707923586132,-749.48,0.00042465,7]
[314018753,1707923586141,-770.43,0.00042465,7]
[314018754,1707923586151,-566.52488946,0.00042465,7]
[314018755,1707923586161,-4409.87,0.00042465,7]
[314018756,1707923586170,-1582.96,0.00042465,7]
[314018757,1707923586180,-940.66,0.00042465,7]
[314018758,1707923586189,-778.24,0.00042465,7]
[314018759,1707923586199,-819.98,0.00042465,7]
[314018760,1707923586208,-151.196457,0.00042476,30]
[314018761,1707923586218,-160.50924634,0.00042484,30]
[314018762,1707923586227,-666.0,0.00042486,4]
[314018763,1707923586236,-150.0,0.00042486,30]
[314018764,1707923586245,-500.0,0.000425,7]
[314018765,1707923586255,-335.0,0.000425,2]
[314018766,1707923586265,-1606.6115945,0.000425,60]
[314018767,1707923586274,-300.0,0.000425,40]
[314018768,1707923586284,-1000.0,0.000425,30]
[314018769,1707923586293,-2110.0,0.000425,15]
[314018770,1707923586303,-165.5887257,0.000425,30]
[314018771,1707923586312,-235.13880492,0.000425,30]
[314018772,1707923586321,-358.85958455,0.00042503,30]
[314018773,1707923586330,-166.66666666,0.00042506,30]
[314018774,1707923586341,-800.0,0.0004252,30]
[314018775,1707923586351,-2000.0,0.0004252,30]
[314018776,1707923586360,-239.29468169,0.00042542,30]
[314018777,1707923586369,-177.85885962,0.00042543,30]
[314018778,1707923586379,-150.0,0.00042544,4]
[314018779,1707923586388,-150.0,0.00042544,4]
[314018780,1707923586398,-358.85958455,0.00042557,30]
[314018781,1707923586407,-204.0,0.00042559,21]
[314018782,1707923586416,-150.0,0.00042567,120]
[314018783,1707923586425,-273.38497555,0.00042573,13]
[314018784,1707923586435,-239.29468169,0.00042587,30]
[314018785,1707923586444,-154.68938908,0.0004259,30]
[314018786,1707923586453,-1015.52459866,0.000426,120]
[314018787,1707923586464,-160.50924634,0.0004261,30]
[314018788,1707923586473,-657.90689477,0.00042613,30]
[314018789,1707923586482,-144597.70425782,0.00042617,2]
[314018790,1707923586492,-239.29468169,0.00042627,30]
[314018791,1707923586501,-155.96258335,0.00042631,30]
[314018792,1707923586510,-154.65466196,0.00042631,30]
[314018793,1707923586520,-657.90689477,0.00042642,30]
[314018794,1707923586529,-151.0214,0.00042648,21]
[314018795,1707923586539,-239.29468169,0.0004265,30]
[314018796,1707923586549,-235.13880492,0.00042661,30]
[314018797,1707923586558,-239.29468169,0.00042689,30]
[314018798,1707923586568,-2647887.0,0.0004269,60]
[314018799,1707923586577,-235.13880492,0.00042711,30]
[314018800,1707923586586,-358.85958455,0.00042721,30]
[314018801,1707923586595,-154.03006511,0.00042725,30]
[314018802,1707923586604,-155.43902421,0.00042726,30]
[314018803,1707923586613,-354.81402348,0.00042729,30]
[314018804,1707923586622,-243.76875782,0.00042732,4]
[314018805,1707923586632,-150.0,0.00042732,4]
[314018806,1707923586641,-636.47,0.00042739,7]
[314018807,1707923586651,-968.71,0.00042739,7]
[314018808,1707923586661,-638.4459892,0.00042739,7]
[314018809,1707923586670,-536.83,0.00042739,7]
[314018810,1707923586679,-511.55,0.00042739,7]
[314018811,1707923586689,-564.0,0.00042739,7]
[314018812,1707923586698,-1240.83,0.00042739,7]
[314018813,1707923586707,-1171.11,0.00042739,7]
[314018814,1707923586719,-564.08,0.00042739,7]
[314018815,1707923586729,-1281.17,0.00042739,7]
[314018816,1707923586738,-1147.23,0.00042739,7]
[314018817,1707923586747,-568.35,0.00042739,7]
[314018818,1707923586756,-1433.14,0.00042739,7]
[314018819,1707923586766,-530.02,0.00042739,7]
[314018820,1707923586776,-1489.83,0.00042739,7]
[314018821,1707923586785,-528.29,0.00042739,7]
[314018822,1707923586795,-1024.97,0.00042739,7]
[314018823,1707923586804,-569.56,0.00042739,7]
[314018824,1707923586814,-785.09,0.00042739,7]
[314018825,1707923586823,-1152.13,0.00042739,7]
[314018826,1707923586832,-1376.22,0.00042739,2]
[314018827,1707923586841,-770.95,0.00042739,7]
[314018828,1707923586851,-1599.92,0.00042739,7]
[314018829,1707923586860,-1153.23,0.00042739,7]
[314018830,1707923586869,-1045.09,0.00042739,7]
[314018831,1707923586878,-774.56,0.00042739,7]
[314018832,1707923586887,-1031.35,0.00042739,7]
[314018833,1707923586897,-548.76,0.00042739,7]
[314018834,1707923586909,-184.70350971,0.00042739,7]
[314018835,1707923586919,-661.87,0.00042739,7]
[314018836,1707923586928,-584.37,0.00042739,7]
[314018837,1707923586937,-520.1,0.00042739,7]
[314018838,1707923586947,-1604.0,0.00042739,7]
[314018839,1707923586956,-943.16,0.00042739,7]
[314018840,1707923586966,-644.22,0.00042739,7]
[314018841,1707923586976,-1264.92,0.00042739,7]
[314018842,1707923586985,-1136.26,0.00042739,7]
[314018843,1707923586994,-704.7,0.00042739,7]
[314018844,1707923587005,-553.03,0.00042739,7]
[314018845,1707923587015,-812.61,0.00042739,7]
[314018846,1707923587024,-570.14,0.00042739,7]
[314018847,1707923587033,-519.06,0.00042739,7]
[314018848,1707923587042,-733.41,0.00042739,7]
[314018849,1707923587051,-1130.05,0.00042739,7]
[314018850,1707923587060,-674.48,0.00042739,7]
[314018851,1707923587070,-599.48,0.00042739,7]
[314018852,1707923587081,-699.45,0.00042739,7]
[314018853,1707923587090,-808.31,0.00042739,7]
[314018854,1707923587099,-647.83,0.00042739,7]
[314018855,1707923587108,-1377.65,0.00042739,7]
[314018856,1707923587117,-734.76,0.00042739,7]
[314018857,1707923587126,-1145.4,0.00042739,7]
[314018858,1707923587136,-1361.9,0.00042739,7]
[314018859,1707923587145,-1574.35,0.00042739,7]
[314018860,1707923587154,-526.79606894,0.00042739,7]
[314018861,1707923587163,-1000.98,0.00042739,7]
[314018862,1707923587173,-940.65,0.00042739,7]
[314018863,1707923587182,-819.39,0.00042739,7]
[314018864,1707923587191,-664.33,0.00042739,7]
[314018865,1707923587200,-574.43,0.00042739,7]
[314018866,1707923587212,-582.92,0.00042739,7]
[314018867,1707923587221,-709.41,0.00042739,7]
[314018868,1707923587231,-523.78,0.00042739,7]
[314018869,1707923587240,-584.12,0.00042739,7]
[314018870,1707923587249,-629.64,0.00042739,7]
[314018871,1707923587259,-549.4,0.00042739,7]
[314018872,1707923587268,-1007.67,0.00042739,7]
[314018873,1707923587278,-2090.09,0.00042739,7]
[314018874,1707923587287,-964.24,0.00042739,7]
[314018875,1707923587297,-633.52,0.00042739,7]
[314018876,1707923587306,-500.0,0.00042739,7]
[314018877,1707923587315,-1464.25,0.00042739,7]
[314018878,1707923587324,-1470.37,0.00042739,7]
[314018879,1707923587334,-303.29221444,0.00042739,7]
[314018880,1707923587343,-608.25,0.00042739,7]
[314018881,1707923587353,-760.6,0.00042739,7]
[314018882,1707923587362,-547.73,0.00042739,7]
[314018883,1707923587371,-1725.04,0.00042739,7]
[314018884,1707923587381,-554.39,0.00042739,7]
[314018885,1707923587391,-1351.58,0.00042739,7]
[314018886,1707923587400,-638.35,0.00042739,7]
[314018887,1707923587409,-619.45,0.00042739,7]
[314018888,1707923587418,-974.92,0.00042739,7]
[314018889,1707923587428,-855.82,0.00042739,7]
[314018890,1707923587438,-1157.75,0.00042739,7]
[314018891,1707923587447,-896.42,0.00042739,2]
[314018892,1707923587456,-544.41,0.00042739,7]
[314018893,1707923587468,-586.61,0.00042739,7]
[314018894,1707923587479,-863.99,0.00042739,7]
[314018895,1707923587488,-969.91,0.00042739,7]
[314018896,1707923587497,-597.96,0.00042739,2]
[314018897,1707923587506,-1237.52,0.00042739,7]
[314018898,1707923587516,-500.0,0.00042739,7]
[314018899,1707923587525,-686.48,0.00042739,7]
[314018900,1707923587534,-633.51,0.00042739,7]
[314018901,1707923587543,-1310.86,0.00042739,7]
[314018902,1707923587552,-646.21,0.00042739,7]
[314018903,1707923587561,-643.81,0.00042739,7]
[314018904,1707923587570,-632.83,0.00042739,7]
[314018905,1707923587580,-1166.74,0.00042739,7]
[314018906,1707923587589,-778.72,0.00042739,7]
[314018907,1707923587598,-537.19,0.00042739,7]
[314018908,1707923587607,-522.92,0.00042739,7]
[314018909,1707923587615,-839.23,0.00042739,7]
[314018910,1707923587624,-540.0,0.00042739,7]
[314018911,1707923587634,-860.82,0.00042739,7]
[314018912,1707923587643,-710.26,0.00042739,7]
[314018913,1707923587651,-210.81378608,0.00042739,7]
[314018914,1707923587661,-594.3,0.00042739,7]
[314018915,1707923587670,-563.0,0.00042739,7]
[314018916,1707923587680,-689.41,0.00042739,7]
[314018917,1707923587690,-1292.66,0.00042739,7]
[314018918,1707923587699,-1735.17,0.00042739,7]
[314018919,1707923587707,-2576.99,0.00042739,7]
[314018920,1707923587718,-1880.82,0.00042739,7]
[314018921,1707923587727,-551.14,0.00042739,7]
[314018922,1707923587736,-1420.44,0.00042739,7]
[314018923,1707923587745,-713.29,0.00042739,7]
[314018924,1707923587754,-1306.77,0.00042739,7]
[314018925,1707923587763,-865.48,0.00042739,7]
[314018926,1707923587773,-798.43,0.00042739,7]
[314018927,1707923587782,-792.44,0.00042739,7]
[314018928,1707923587792,-1762.73,0.00042739,7]
[314018929,1707923587800,-566.85,0.00042739,7]
[314018930,1707923587810,-616.16,0.00042739,7]
[314018931,1707923587819,-721.07,0.00042739,7]
[314018932,1707923587828,-501.48,0.00042739,7]
[314018933,1707923587837,-1882.77,0.00042739,7]
[314018934,1707923587846,-804.17,0.00042739,7]
[314018935,1707923587854,-1538.55,0.00042739,7]
[314018936,1707923587864,-747.44,0.00042739,7]
[314018937,1707923587872,-1390.73,0.00042739,7]
[314018938,1707923587881,-1109.74,0.00042739,7]
[314018939,1707923587890,-632.23,0.00042739,7]
[314018940,1707923587899,-886.7,0.00042739,7]
[314018941,1707923587909,-159.52907754,0.00042739,7]
[314018942,1707923587918,-582.6,0.00042739,7]
[314018943,1707923587927,-631.42,0.00042739,7]
[314018944,1707923587936,-1281.5,0.00042739,7]
[314018945,1707923587945,-1512.4,0.00042739,7]
[314018946,1707923587954,-669.64,0.00042739,7]
[314018947,1707923587964,-2645.87,0.00042739,7]
[314018948,1707923587973,-649.97,0.00042739,7]
[314018949,1707923587983,-9592.87,0.00042739,7]
[314018950,1707923587992,-6589.39,0.00042739,7]
[314018951,1707923588004,-483.98692105,0.00042739,7]
[314018952,1707923588013,-537.36,0.00042739,7]
[314018953,1707923588023,-1074.08,0.00042739,7]
[314018954,1707923588033,-712.86,0.00042739,7]
[314018955,1707923588042,-10349.22,0.00042739,7]
[314018956,1707923588052,-2138.7,0.00042739,7]
[314018957,1707923588062,-2522.18,0.00042739,7]
[314018958,1707923588071,-1253.86,0.00042739,7]
[314018959,1707923588082,-5438.42,0.00042739,7]
[314018960,1707923588092,-775.14,0.00042739,7]
[314018961,1707923588101,-617.22,0.00042739,7]
[314018962,1707923588110,-5792.28,0.00042739,7]
[314018963,1707923588119,-1042.95,0.00042739,7]
[314018964,1707923588129,-1305.25,0.00042739,7]
[314018965,1707923588139,-1375.63,0.00042739,7]
[314018966,1707923588148,-1101.1,0.00042739,7]
[314018967,1707923588157,-1710.63,0.00042739,7]
[314018968,1707923588167,-3610.33,0.00042739,7]
[314018969,1707923588176,-1942.7,0.00042739,7]
[314018970,1707923588186,-656.71,0.00042739,7]
[314018971,1707923588195,-508.16,0.00042739,7]
[314018972,1707923588205,-2795.61,0.00042739,7]
[314018973,1707923588216,-13119.1,0.00042739,7]
[314018974,1707923588225,-4841.93,0.00042739,7]
[314018975,1707923588235,-789.06,0.00042739,7]
[314018976,1707923588244,-1486.36,0.00042739,7]
[314018977,1707923588254,-1122.77,0.00042739,7]
[314018978,1707923588263,-3238.15,0.00042739,7]
[314018979,1707923588274,-5897.47,0.00042739,7]
[314018980,1707923588283,-805.46,0.00042739,7]
[314018981,1707923588293,-664.49,0.00042739,7]
[314018982,1707923588302,-1313.77,0.00042739,7]
[314018983,1707923588313,-574.19,0.00042739,7]
[314018984,1707923588322,-11522.74,0.00042739,7]
[314018985,1707923588332,-1290.94,0.00042739,7]
[314018986,1707923588341,-1511.05,0.00042739,7]
[314018987,1707923588351,-520.12,0.00042739,7]
[314018988,1707923588360,-6267.83,0.00042739,7]
[314018989,1707923588369,-879.95,0.00042739,7]
[314018990,1707923588378,-2830.38,0.00042739,7]
[314018991,1707923588388,-763.78,0.00042739,7]
[314018992,1707923588397,-626.07,0.00042739,7]
[314018993,1707923588407,-4425.6,0.00042739,7]
[314018994,1707923588416,-1371.91,0.00042739,7]
[314018995,1707923588425,-986.33,0.00042739,7]
[314018996,1707923588435,-45639.2,0.00042739,7]
[314018997,1707923588443,-5389.09,0.00042739,7]
[314018998,1707923588453,-1240.03,0.00042739,7]
[314018999,1707923588465,-558.68,0.00042739,7]
[314019000,1707923588474,-4636.49,0.00042739,7]
[314019001,1707923588484,-525.56,0.00042739,7]
[314019002,1707923588493,-2461.93,0.00042739,7]
[314019003,1707923588502,-682.43,0.00042739,7]
[314019004,1707923588511,-1031.1,0.00042739,7]
[314019005,1707923588520,-1060.11,0.00042739,7]
[314019006,1707923588530,-3757.3,0.00042739,7]
[314019007,1707923588539,-741.06,0.00042739,7]
[314019008,1707923588548,-777.41,0.00042739,7]
[314019009,1707923588558,-838.79,0.00042739,7]
[314019010,1707923588567,-866.09,0.00042739,7]
[314019011,1707923588577,-3315.92,0.00042739,7]
[314019012,1707923588586,-8419.92,0.00042739,7]
[314019013,1707923588595,-1479.6,0.00042739,7]
[314019014,1707923588605,-1669.6,0.00042739,7]
[314019015,1707923588614,-1425.19,0.00042739,7]
[314019016,1707923588624,-941.92,0.00042739,7]
[314019017,1707923588633,-1068.3,0.00042739,7]
[314019018,1707923588643,-978.39,0.00042739,7]
[314019019,1707923588652,-1743.01,0.00042739,7]
[314019020,1707923588662,-527.53,0.00042739,7]
[314019021,1707923588671,-5014.41,0.00042739,7]
[314019022,1707923588681,-16404.96,0.00042739,7]
[314019023,1707923588690,-2618.16,0.00042739,7]
[314019024,1707923588700,-1253.74,0.00042739,7]
[314019025,1707923588711,-1428.29,0.00042739,7]
[314019026,1707923588721,-12919.21,0.00042739,7]
[314019027,1707923588731,-725.51,0.00042739,7]
[314019028,1707923588741,-564.17,0.00042739,7]
[314019029,1707923588751,-670.32,0.00042739,7]
[314019030,1707923588761,-608.21,0.00042739,7]
[314019031,1707923588771,-3982.22,0.00042739,7]
[314019032,1707923588781,-15886.12,0.00042739,7]
[314019033,1707923588791,-2293.57,0.00042739,7]
[314019034,1707923588801,-1912.2,0.00042739,7]
[314019035,1707923588810,-1078.52,0.00042739,7]
[314019036,1707923588820,-1675.86,0.00042739,7]
[314019037,1707923588829,-998.25,0.00042739,7]
[314019038,1707923588839,-1548.99,0.00042739,7]
[314019039,1707923588848,-4682.24,0.00042739,7]
[314019040,1707923588857,-1678.3,0.00042739,7]
[314019041,1707923588867,-2172.47,0.00042739,7]
[314019042,1707923588877,-4636.94,0.00042739,7]
[314019043,1707923588886,-905.58,0.00042739,7]
[314019044,1707923588896,-3347.59,0.00042739,7]
[314019045,1707923588906,-24853.72,0.00042739,7]
[314019046,1707923588916,-2682.03,0.00042739,7]
[314019047,1707923588926,-500.0,0.00042739,7]
[314019048,1707923588935,-741.23,0.00042739,7]
[314019049,1707923588945,-4661.42,0.00042739,7]
[314019050,1707923588955,-504.17,0.00042739,7]
[314019051,1707923588965,-644.02,0.00042739,7]
[314019052,1707923588975,-1447.91,0.00042739,7]
[314019053,1707923588986,-870.17,0.00042739,7]
[314019054,1707923588995,-575.73,0.00042739,2]
[314019055,1707923589008,-513.51,0.00042739,7]
[314019056,1707923589017,-13772.64,0.00042739,7]
[314019057,1707923589026,-734.67,0.00042739,7]
[314019058,1707923589035,-861.53,0.00042739,7]
[314019059,1707923589046,-4963.65,0.00042739,7]
[314019060,1707923589055,-4015.51,0.00042739,7]
[314019061,1707923589064,-1647.66,0.00042739,7]
[314019062,1707923589074,-834.17,0.00042739,7]
[314019063,1707923589084,-1651.62,0.00042739,7]
[314019064,1707923589095,-1367.71,0.00042739,7]
[314019065,1707923589104,-705.01,0.00042739,7]
[314019066,1707923589114,-738.43,0.00042739,7]
[314019067,1707923589124,-500.0,0.00042739,7]
[314019068,1707923589134,-1605.94,0.00042739,7]
[314019069,1707923589144,-1232.76,0.00042739,7]
[314019070,1707923589154,-2624.93,0.00042739,7]
[314019071,1707923589163,-1397.98,0.00042739,7]
[314019072,1707923589173,-3882.2,0.00042739,7]
[314019073,1707923589183,-6303.05,0.00042739,7]
[314019074,1707923589192,-1424.26,0.00042739,7]
[314019075,1707923589202,-6796.38,0.00042739,7]
[314019076,1707923589213,-9115.46,0.00042739,7]
[314019077,1707923589223,-1430.04,0.00042739,7]
[314019078,1707923589233,-876.71,0.00042739,7]
[314019079,1707923589242,-6722.84,0.00042739,7]
[314019080,1707923589252,-1159.69,0.00042739,7]
[314019081,1707923589261,-1566.04,0.00042739,7]
[314019082,1707923589271,-5625.73,0.00042739,7]
[314019083,1707923589280,-742.15,0.00042739,7]
[314019084,1707923589289,-1074.84,0.00042739,7]
[314019085,1707923589299,-21955.42,0.00042739,7]
[314019086,1707923589309,-10536.73,0.00042739,7]
[314019087,1707923589318,-1224.55,0.00042739,7]
[314019088,1707923589328,-3349.17,0.00042739,7]
[314019089,1707923589338,-1141.82,0.00042739,7]
[314019090,1707923589348,-4103.23,0.00042739,7]
[314019091,1707923589358,-15646.43,0.00042739,7]
[314019092,1707923589367,-580.0,0.00042739,7]
[314019093,1707923589377,-849.7,0.00042739,7]
[314019094,1707923589387,-1131.16,0.00042739,7]
[314019095,1707923589397,-888.9,0.00042739,7]
[314019096,1707923589407,-970.39,0.00042739,7]
[314019097,1707923589416,-2458.64,0.00042739,7]
[314019098,1707923589426,-1032.81,0.00042739,7]
[314019099,1707923589435,-940.22,0.00042739,7]
[314019100,1707923589445,-845.63,0.00042739,7]
[314019101,1707923589454,-861.05,0.00042739,7]
[314019102,1707923589466,-2020.71,0.00042739,7]
[314019103,1707923589475,-4353.77,0.00042739,7]
[314019104,1707923589485,-655.93,0.00042739,7]
[314019105,1707923589495,-2136.24,0.00042739,7]
[314019106,1707923589505,-3468.32,0.00042739,7]
[314019107,1707923589514,-1868.07,0.00042739,7]
[314019108,1707923589524,-1175.69,0.00042739,7]
[314019109,1707923589534,-4307.44,0.00042739,7]
[314019110,1707923589544,-2131.96,0.00042739,7]
[314019111,1707923589553,-4133.28,0.00042739,7]
[314019112,1707923589564,-3754.14,0.00042739,7]
[314019113,1707923589573,-1200.28,0.00042739,7]
[314019114,1707923589582,-551.94,0.00042739,7]
[314019115,1707923589592,-2643.73,0.00042739,7]
[314019116,1707923589602,-1293.93,0.00042739,7]
[314019117,1707923589611,-1428.62,0.00042739,7]
[314019118,1707923589621,-4255.94,0.00042739,7]
[314019119,1707923589630,-1073.43,0.00042739,7]
[314019120,1707923589640,-1154.7,0.00042739,7]
[314019121,1707923589649,-749.27,0.00042739,7]
[314019122,1707923589659,-1681.08,0.00042739,7]
[314019123,1707923589669,-696.07,0.00042739,7]
[314019124,1707923589678,-1992.67,0.00042739,7]
[314019125,1707923589687,-1960.66,0.00042739,7]
[314019126,1707923589697,-4598.11,0.00042739,7]
[314019127,1707923589706,-2148.61,0.00042739,7]
[314019128,1707923589718,-776.5,0.00042739,7]
[314019129,1707923589728,-759.83,0.00042739,7]
[314019130,1707923589738,-876.47,0.00042739,7]
[314019131,1707923589748,-907.63,0.00042739,7]
[314019132,1707923589758,-1863.83,0.00042739,7]
[314019133,1707923589768,-22229.37,0.00042739,7]
[314019134,1707923589778,-2233.48,0.00042739,7]